[Event "Early-Titled-Tuesday-Blitz-May-28-2024"]
[Site "Chess.com"]
[Date "2024.05.28"]
[Round "11"]
[White "David_Arutinian"]
[Black "chrisclaireredfield"]
[Result "1-0"]
[WhiteElo "2816"]
[BlackElo "2569"]
[TimeControl "180+1"]
[EndTime "10:08:29 PDT"]
[Termination "David_Arutinian won by checkmate"]

1. Nf3 {[%clk 0:03:00.9]} 1... d5 {[%clk 0:02:58.4]} 2. e3 {[%clk 0:03:00.5]}
2... c6 {[%clk 0:02:58.2]} 3. c4 {[%clk 0:03:00.9]} 3... Nf6 {[%clk 0:02:58]} 4.
Nc3 {[%clk 0:03:00.7]} 4... g6 {[%clk 0:02:57.7]} 5. d4 {[%clk 0:03:00.2]} 5...
Bg7 {[%clk 0:02:57.6]} 6. Be2 {[%clk 0:03:00]} 6... O-O {[%clk 0:02:56.1]} 7.
O-O {[%clk 0:03:00.5]} 7... a6 {[%clk 0:02:53.4]} 8. b3 {[%clk 0:03:00.2]} 8...
b5 {[%clk 0:02:52.9]} 9. Bb2 {[%clk 0:03:00.7]} 9... Bg4 {[%clk 0:02:48.4]} 10.
h3 {[%clk 0:03:00.7]} 10... Bxf3 {[%clk 0:02:48.3]} 11. Bxf3 {[%clk 0:03:01.6]}
11... e6 {[%clk 0:02:44.8]} 12. Qc2 {[%clk 0:03:00.6]} 12... Nbd7 {[%clk
0:02:44.2]} 13. Rfd1 {[%clk 0:02:59]} 13... Re8 {[%clk 0:02:42.1]} 14. Rac1
{[%clk 0:02:59.4]} 14... Rc8 {[%clk 0:02:41.2]} 15. Nb1 {[%clk 0:02:54.6]} 15...
Qb6 {[%clk 0:02:38.6]} 16. Nd2 {[%clk 0:02:54.5]} 16... Qb7 {[%clk 0:02:26.7]}
17. e4 {[%clk 0:02:54.1]} 17... Nb6 {[%clk 0:02:12.4]} 18. e5 {[%clk 0:02:48.1]}
18... Nfd7 {[%clk 0:02:12.2]} 19. c5 {[%clk 0:02:47.7]} 19... Na8 {[%clk
0:02:12]} 20. h4 {[%clk 0:02:43.7]} 20... f6 {[%clk 0:02:11.2]} 21. exf6 {[%clk
0:02:42.3]} 21... Bxf6 {[%clk 0:02:07.8]} 22. h5 {[%clk 0:02:42]} 22... Kg7
{[%clk 0:02:05.5]} 23. Re1 {[%clk 0:02:40.7]} 23... Nc7 {[%clk 0:02:01.8]} 24.
Bg4 {[%clk 0:02:40.4]} 24... Re7 {[%clk 0:01:58.5]} 25. Nf3 {[%clk 0:02:40.1]}
25... Rce8 {[%clk 0:01:57.5]} 26. Qd2 {[%clk 0:02:29.8]} 26... b4 {[%clk
0:01:52]} 27. Re2 {[%clk 0:02:28.1]} 27... a5 {[%clk 0:01:40]} 28. Rce1 {[%clk
0:02:27.9]} 28... Nf8 {[%clk 0:01:40.4]} 29. g3 {[%clk 0:02:11.2]} 29... Nb5
{[%clk 0:01:39.5]} 30. Kg2 {[%clk 0:02:11.1]} 30... Qc7 {[%clk 0:01:28.4]} 31.
Ne5 {[%clk 0:02:08.7]} 31... Bxe5 {[%clk 0:01:24.8]} 32. dxe5 {[%clk 0:02:08.6]}
32... Rf7 {[%clk 0:00:57.7]} 33. Rh1 {[%clk 0:02:06.9]} 33... Kg8 {[%clk
0:00:55.3]} 34. Qh6 {[%clk 0:01:58]} 34... Qe7 {[%clk 0:00:54.3]} 35. Bc1 {[%clk
0:01:52.8]} 35... Qxc5 {[%clk 0:00:49.9]} 36. Bg5 {[%clk 0:01:48.7]} 36... Nc3
{[%clk 0:00:43.2]} 37. hxg6 {[%clk 0:01:43.3]} 37... Nxg6 {[%clk 0:00:42.8]} 38.
Bf6 {[%clk 0:01:41.3]} 38... Ra7 {[%clk 0:00:09]} 39. Ree1 {[%clk 0:01:34.5]}
39... Ne4 {[%clk 0:00:08.5]} 40. Rxe4 {[%clk 0:01:26.3]} 40... dxe4 {[%clk
0:00:08.5]} 41. Bh5 {[%clk 0:01:13.7]} 41... Qd5 {[%clk 0:00:07.1]} 42. Bxg6
{[%clk 0:01:07]} 42... e3+ {[%clk 0:00:07.4]} 43. f3 {[%clk 0:01:06.7]} 43...
Qd2+ {[%clk 0:00:06.2]} 44. Kh3 {[%clk 0:01:06.5]} 44... hxg6 {[%clk 0:00:04.1]}
45. Qh8+ {[%clk 0:01:03.8]} 45... Kf7 {[%clk 0:00:04.2]} 46. Qg7# {[%clk
0:01:03.9]} 1-0

[Event "Early-Titled-Tuesday-Blitz-May-28-2024"]
[Site "Chess.com"]
[Date "2024.05.28"]
[Round "11"]
[White "AnaKuchava"]
[Black "MikeWizard"]
[Result "1/2-1/2"]
[WhiteElo "2192"]
[BlackElo "2025"]
[TimeControl "180+1"]
[EndTime "10:08:30 PDT"]
[Termination "Game drawn - insufficient material"]

1. d4 {[%clk 0:03:00.9]} 1... Nf6 {[%clk 0:02:58.5]} 2. Nf3 {[%clk 0:02:58.1]}
2... g6 {[%clk 0:02:58.4]} 3. c4 {[%clk 0:02:56]} 3... Bg7 {[%clk 0:02:58.2]} 4.
Nc3 {[%clk 0:02:54.4]} 4... d6 {[%clk 0:02:58.1]} 5. e4 {[%clk 0:02:53.5]} 5...
O-O {[%clk 0:02:57.7]} 6. Be2 {[%clk 0:02:53.3]} 6... e5 {[%clk 0:02:56.1]} 7.
O-O {[%clk 0:02:53.8]} 7... Na6 {[%clk 0:02:52.3]} 8. Re1 {[%clk 0:02:52.2]}
8... Bg4 {[%clk 0:02:48.1]} 9. Be3 {[%clk 0:02:49.4]} 9... c6 {[%clk 0:02:44.2]}
10. dxe5 {[%clk 0:02:46.7]} 10... dxe5 {[%clk 0:02:43.7]} 11. Qxd8 {[%clk
0:02:39.8]} 11... Rfxd8 {[%clk 0:02:42.9]} 12. Nxe5 {[%clk 0:02:40.5]} 12...
Bxe2 {[%clk 0:02:41.6]} 13. Rxe2 {[%clk 0:02:41.4]} 13... Re8 {[%clk 0:02:40.7]}
14. f4 {[%clk 0:02:37.8]} 14... h5 {[%clk 0:02:24.5]} 15. Rd1 {[%clk 0:02:34.6]}
15... Ng4 {[%clk 0:02:19.1]} 16. Nxg4 {[%clk 0:02:34.1]} 16... hxg4 {[%clk
0:02:19.1]} 17. Bd4 {[%clk 0:02:34.6]} 17... Bf8 {[%clk 0:02:12.4]} 18. Kf2
{[%clk 0:02:10.7]} 18... Nc5 {[%clk 0:02:09.9]} 19. Bxc5 {[%clk 0:02:07.3]}
19... Bxc5+ {[%clk 0:02:08.6]} 20. Kg3 {[%clk 0:02:08]} 20... f5 {[%clk
0:02:07]} 21. e5 {[%clk 0:02:07.4]} 21... Rad8 {[%clk 0:02:05.3]} 22. Red2
{[%clk 0:02:06.9]} 22... Rxd2 {[%clk 0:02:02.2]} 23. Rxd2 {[%clk 0:02:07.8]}
23... Kf7 {[%clk 0:02:01.7]} 24. Na4 {[%clk 0:01:56.1]} 24... Bb4 {[%clk
0:01:54.4]} 25. Rd7+ {[%clk 0:01:50.8]} 25... Re7 {[%clk 0:01:54.5]} 26. Rd8
{[%clk 0:01:34.7]} 26... b5 {[%clk 0:01:50]} 27. cxb5 {[%clk 0:01:26.2]} 27...
cxb5 {[%clk 0:01:49.7]} 28. Nc3 {[%clk 0:01:26.8]} 28... Bxc3 {[%clk 0:01:49.7]}
29. bxc3 {[%clk 0:01:27.7]} 29... Rc7 {[%clk 0:01:47.8]} 30. Rd3 {[%clk
0:01:27.4]} 30... Rc4 {[%clk 0:01:47.2]} 31. Rd7+ {[%clk 0:01:10.5]} 31... Ke6
{[%clk 0:01:43.5]} 32. Rxa7 {[%clk 0:01:08.1]} 32... Rxc3+ {[%clk 0:01:43.5]}
33. Kh4 {[%clk 0:01:08.6]} 33... Rc2 {[%clk 0:01:43.3]} 34. Ra6+ {[%clk
0:01:07.6]} 34... Kf7 {[%clk 0:01:42.6]} 35. Kg5 {[%clk 0:00:53.5]} 35... Rxg2
{[%clk 0:01:40.5]} 36. Ra7+ {[%clk 0:00:50.6]} 36... Ke6 {[%clk 0:01:37.9]} 37.
Kxg6 {[%clk 0:00:45]} 37... Rxh2 {[%clk 0:01:37.9]} 38. Ra6+ {[%clk 0:00:44.2]}
38... Kd5 {[%clk 0:01:37.6]} 39. Kxf5 {[%clk 0:00:41.7]} 39... g3 {[%clk
0:01:37.6]} 40. Rg6 {[%clk 0:00:35.9]} 40... Rxa2 {[%clk 0:01:33.2]} 41. Rxg3
{[%clk 0:00:34.6]} 41... b4 {[%clk 0:01:33.4]} 42. Rd3+ {[%clk 0:00:31.9]} 42...
Kc4 {[%clk 0:01:33.3]} 43. Rd8 {[%clk 0:00:31.8]} 43... b3 {[%clk 0:01:30.6]}
44. Rc8+ {[%clk 0:00:27.4]} 44... Kd3 {[%clk 0:01:26.9]} 45. Rb8 {[%clk
0:00:27.8]} 45... Kc2 {[%clk 0:01:26.5]} 46. e6 {[%clk 0:00:28.3]} 46... Ra7
{[%clk 0:01:24.7]} 47. Kf6 {[%clk 0:00:25.8]} 47... b2 {[%clk 0:01:22.2]} 48.
Rxb2+ {[%clk 0:00:25.6]} 48... Kxb2 {[%clk 0:01:21.4]} 49. e7 {[%clk 0:00:25.6]}
49... Ra8 {[%clk 0:01:16.9]} 50. Kf7 {[%clk 0:00:25.6]} 50... Kc3 {[%clk
0:01:17.1]} 51. e8=Q {[%clk 0:00:07]} 51... Rxe8 {[%clk 0:01:15.7]} 52. Kxe8
{[%clk 0:00:07.9]} 52... Kd4 {[%clk 0:01:15.9]} 53. f5 {[%clk 0:00:06.3]} 53...
Ke5 {[%clk 0:01:15.9]} 54. f6 {[%clk 0:00:06.9]} 54... Kxf6 {[%clk 0:01:16]}
1/2-1/2

[Event "Early-Titled-Tuesday-Blitz-May-28-2024"]
[Site "Chess.com"]
[Date "2024.05.28"]
[Round "11"]
[White "luggevoila"]
[Black "rollercoaster29"]
[Result "0-1"]
[WhiteElo "2354"]
[BlackElo "2544"]
[TimeControl "180+1"]
[EndTime "10:08:36 PDT"]
[Termination "rollercoaster29 won by resignation"]

1. e4 {[%clk 0:03:00.9]} 1... c5 {[%clk 0:02:55.7]} 2. Nf3 {[%clk 0:03:00.3]}
2... d6 {[%clk 0:02:55.7]} 3. Bb5+ {[%clk 0:03:00.2]} 3... Bd7 {[%clk
0:02:54.9]} 4. a4 {[%clk 0:02:59.9]} 4... Nf6 {[%clk 0:02:53.1]} 5. Nc3 {[%clk
0:02:59.6]} 5... g6 {[%clk 0:02:52.6]} 6. O-O {[%clk 0:02:59.3]} 6... Bg7 {[%clk
0:02:52.7]} 7. d4 {[%clk 0:02:59]} 7... cxd4 {[%clk 0:02:51.2]} 8. Nxd4 {[%clk
0:02:59.2]} 8... O-O {[%clk 0:02:50.5]} 9. Re1 {[%clk 0:02:58.8]} 9... Nc6
{[%clk 0:02:49.9]} 10. Bf1 {[%clk 0:02:51.2]} 10... Nxd4 {[%clk 0:02:39.3]} 11.
Qxd4 {[%clk 0:02:51.2]} 11... Ng4 {[%clk 0:02:39]} 12. Qd3 {[%clk 0:02:35.5]}
12... Qb6 {[%clk 0:02:33.5]} 13. Qf3 {[%clk 0:02:24.9]} 13... Bd4 {[%clk
0:02:29.6]} 14. Re2 {[%clk 0:01:59.8]} 14... f5 {[%clk 0:02:10.4]} 15. Nd5
{[%clk 0:01:55.4]} 15... fxe4 {[%clk 0:01:54.6]} 16. Qxf8+ {[%clk 0:01:39.7]}
16... Rxf8 {[%clk 0:01:52.3]} 17. Nxb6 {[%clk 0:01:39.7]} 17... Rxf2 {[%clk
0:01:34.6]} 18. Rxf2 {[%clk 0:01:19.2]} 18... Bxf2+ {[%clk 0:01:34.2]} 19. Kh1
{[%clk 0:01:19.3]} 19... Bxb6 {[%clk 0:01:34.6]} 20. h3 {[%clk 0:01:17.9]} 20...
Nf2+ {[%clk 0:01:33.3]} 21. Kh2 {[%clk 0:01:18]} 21... d5 {[%clk 0:01:29.6]} 22.
Be2 {[%clk 0:01:08.2]} 22... d4 {[%clk 0:01:27.6]} 23. Bc4+ {[%clk 0:01:07.4]}
23... Kg7 {[%clk 0:01:26.9]} 24. Bf4 {[%clk 0:01:00.5]} 24... Kf6 {[%clk
0:01:13.5]} 25. Rf1 {[%clk 0:00:58.5]} 25... e3 {[%clk 0:01:09.3]} 26. g4 {[%clk
0:00:45.2]} 26... Bxa4 {[%clk 0:00:59.1]} 27. c3 {[%clk 0:00:45.4]} 27... dxc3
{[%clk 0:00:55.3]} 28. bxc3 {[%clk 0:00:44.7]} 28... e5 {[%clk 0:00:54]} 29. Bg3
{[%clk 0:00:30.9]} 29... Bc6 {[%clk 0:00:53.7]} 30. g5+ {[%clk 0:00:23.3]} 30...
Kxg5 {[%clk 0:00:51.2]} 31. Bxe5 {[%clk 0:00:22.6]} 31... a5 {[%clk 0:00:49.7]}
32. Bd4 {[%clk 0:00:22.3]} 32... Bxd4 {[%clk 0:00:47.9]} 33. cxd4 {[%clk
0:00:22.8]} 33... Kf4 {[%clk 0:00:47.6]} 34. d5 {[%clk 0:00:21.7]} 34... Bd7
{[%clk 0:00:45.3]} 35. Rb1 {[%clk 0:00:20.4]} 35... b5 {[%clk 0:00:43.6]} 36.
Be2 {[%clk 0:00:18.8]} 36... b4 {[%clk 0:00:42]} 37. d6 {[%clk 0:00:16.4]} 37...
Ke5 {[%clk 0:00:41.4]} 38. Kg3 {[%clk 0:00:16.1]} 38... Ne4+ {[%clk 0:00:41.8]}
39. Kf3 {[%clk 0:00:15.2]} 39... Nd2+ {[%clk 0:00:42.1]} 0-1

[Event "Early-Titled-Tuesday-Blitz-May-28-2024"]
[Site "Chess.com"]
[Date "2024.05.28"]
[Round "11"]
[White "KhBegmuratov"]
[Black "Zhigalko_Sergei"]
[Result "0-1"]
[WhiteElo "2704"]
[BlackElo "2889"]
[TimeControl "180+1"]
[EndTime "10:08:37 PDT"]
[Termination "Zhigalko_Sergei won by resignation"]

1. e4 {[%clk 0:03:00.9]} 1... c5 {[%clk 0:02:59.6]} 2. Nf3 {[%clk 0:03:01.1]}
2... Nc6 {[%clk 0:02:59.7]} 3. Bb5 {[%clk 0:02:59.1]} 3... Nf6 {[%clk
0:02:59.5]} 4. Bxc6 {[%clk 0:02:55.8]} 4... dxc6 {[%clk 0:03:00.4]} 5. d3 {[%clk
0:02:55.8]} 5... Bg4 {[%clk 0:03:00.5]} 6. Nbd2 {[%clk 0:02:53.9]} 6... Qc7
{[%clk 0:03:00]} 7. h3 {[%clk 0:02:53.6]} 7... Bh5 {[%clk 0:02:59.5]} 8. O-O
{[%clk 0:02:50.4]} 8... Nd7 {[%clk 0:02:57.5]} 9. Qe1 {[%clk 0:02:48.1]} 9... e6
{[%clk 0:02:45]} 10. Nh4 {[%clk 0:02:43.3]} 10... g5 {[%clk 0:02:29.1]} 11. Nhf3
{[%clk 0:02:42.1]} 11... g4 {[%clk 0:02:27.3]} 12. hxg4 {[%clk 0:02:41.8]} 12...
Bxg4 {[%clk 0:02:28.2]} 13. Nh2 {[%clk 0:02:41.3]} 13... Bh5 {[%clk 0:02:08.8]}
14. f4 {[%clk 0:02:40.8]} 14... Be7 {[%clk 0:02:05.3]} 15. Qg3 {[%clk
0:02:35.8]} 15... Nf6 {[%clk 0:01:41.6]} 16. Qh3 {[%clk 0:02:24.7]} 16... Rg8
{[%clk 0:01:25.2]} 17. Ndf3 {[%clk 0:02:19.5]} 17... Bxf3 {[%clk 0:01:03.3]} 18.
Nxf3 {[%clk 0:02:16.5]} 18... c4 {[%clk 0:01:01.3]} 19. Be3 {[%clk 0:02:12]}
19... Ng4 {[%clk 0:00:52.3]} 20. Bd4 {[%clk 0:01:59.8]} 20... O-O-O {[%clk
0:00:42]} 21. g3 {[%clk 0:01:56]} 21... cxd3 {[%clk 0:00:38.4]} 22. cxd3 {[%clk
0:01:55.7]} 22... Rxd4 {[%clk 0:00:38.4]} 23. Nxd4 {[%clk 0:01:44.8]} 23... Qb6
{[%clk 0:00:35.4]} 24. Kg2 {[%clk 0:01:38.8]} 24... Qxd4 {[%clk 0:00:32.2]} 25.
Rfb1 {[%clk 0:00:44.4]} 25... Qf2+ {[%clk 0:00:27.7]} 26. Kh1 {[%clk 0:00:44.5]}
26... Rg6 {[%clk 0:00:28.6]} 27. Rf1 {[%clk 0:00:41.4]} 27... Qxb2 {[%clk
0:00:27.2]} 28. Rab1 {[%clk 0:00:36.8]} 28... Qxa2 {[%clk 0:00:26.8]} 29. Ra1
{[%clk 0:00:31.2]} 29... Qd2 {[%clk 0:00:18.6]} 30. Rad1 {[%clk 0:00:20.2]}
30... Nf2+ {[%clk 0:00:14.3]} 31. Rxf2 {[%clk 0:00:20.8]} 31... Qxf2 {[%clk
0:00:15.2]} 32. Rg1 {[%clk 0:00:21.4]} 32... Bf8 {[%clk 0:00:12.9]} 0-1

[Event "Early-Titled-Tuesday-Blitz-May-28-2024"]
[Site "Chess.com"]
[Date "2024.05.28"]
[Round "11"]
[White "zurzan"]
[Black "Aguiar94"]
[Result "0-1"]
[WhiteElo "2137"]
[BlackElo "2673"]
[TimeControl "180+1"]
[EndTime "10:08:52 PDT"]
[Termination "Aguiar94 won on time"]

1. Nf3 {[%clk 0:03:00.9]} 1... d5 {[%clk 0:02:52.2]} 2. b3 {[%clk 0:03:01.7]}
2... c5 {[%clk 0:02:51]} 3. Bb2 {[%clk 0:03:01.4]} 3... Nc6 {[%clk 0:02:50.6]}
4. c4 {[%clk 0:03:01.3]} 4... d4 {[%clk 0:02:49.6]} 5. d3 {[%clk 0:03:01.2]}
5... e5 {[%clk 0:02:44.1]} 6. e3 {[%clk 0:02:59.1]} 6... Nf6 {[%clk 0:02:42.4]}
7. exd4 {[%clk 0:02:58.1]} 7... cxd4 {[%clk 0:02:43.3]} 8. Be2 {[%clk
0:02:54.6]} 8... Bd6 {[%clk 0:02:40.1]} 9. a3 {[%clk 0:02:54.5]} 9... a5 {[%clk
0:02:38.3]} 10. Nbd2 {[%clk 0:02:52.9]} 10... h6 {[%clk 0:02:36.3]} 11. h3
{[%clk 0:02:52.1]} 11... O-O {[%clk 0:02:36]} 12. O-O {[%clk 0:02:51.7]} 12...
Bf5 {[%clk 0:02:34.2]} 13. Ne1 {[%clk 0:02:42.1]} 13... Re8 {[%clk 0:02:32.6]}
14. Bf3 {[%clk 0:02:41.6]} 14... Qd7 {[%clk 0:02:27.1]} 15. Ne4 {[%clk 0:02:37]}
15... Nxe4 {[%clk 0:02:24.3]} 16. dxe4 {[%clk 0:02:35.9]} 16... Bg6 {[%clk
0:02:19.1]} 17. Nd3 {[%clk 0:02:34.1]} 17... Qc7 {[%clk 0:02:18.6]} 18. c5
{[%clk 0:02:32.1]} 18... Bf8 {[%clk 0:02:17.9]} 19. Rc1 {[%clk 0:02:31.6]} 19...
Nd8 {[%clk 0:02:07.8]} 20. b4 {[%clk 0:02:30.3]} 20... axb4 {[%clk 0:02:06.5]}
21. axb4 {[%clk 0:02:31.2]} 21... Ne6 {[%clk 0:02:05.9]} 22. g3 {[%clk 0:02:28]}
22... Ng5 {[%clk 0:02:05.5]} 23. Bg2 {[%clk 0:02:27.8]} 23... Bxe4 {[%clk
0:02:04]} 24. Bxe4 {[%clk 0:02:25.1]} 24... Nxe4 {[%clk 0:02:04.9]} 25. Re1
{[%clk 0:02:21.8]} 25... Ng5 {[%clk 0:02:00.2]} 26. Kg2 {[%clk 0:02:20.7]} 26...
Qc6+ {[%clk 0:01:57.7]} 27. f3 {[%clk 0:02:20.2]} 27... e4 {[%clk 0:01:55.8]}
28. fxe4 {[%clk 0:02:04.3]} 28... Rxe4 {[%clk 0:01:56.7]} 29. Rxe4 {[%clk
0:01:39.8]} 29... Qxe4+ {[%clk 0:01:57.6]} 30. Kg1 {[%clk 0:01:11.4]} 30...
Nxh3+ {[%clk 0:01:48.5]} 31. Kh2 {[%clk 0:01:09.5]} 31... Ng5 {[%clk 0:01:48.7]}
32. Kg1 {[%clk 0:01:07.3]} 32... Ra2 {[%clk 0:01:46.2]} 33. Rc2 {[%clk 0:01:04]}
33... Nf3+ {[%clk 0:01:41.4]} 34. Kf2 {[%clk 0:00:59.7]} 34... Nh2 {[%clk
0:01:35.4]} 35. Qe2 {[%clk 0:00:45.2]} 35... Ng4+ {[%clk 0:01:32.7]} 36. Kg1
{[%clk 0:00:36.7]} 36... Ne3 {[%clk 0:01:30.1]} 37. Rd2 {[%clk 0:00:32.4]} 37...
Qg6 {[%clk 0:01:22.9]} 38. Qf2 {[%clk 0:00:14.7]} 38... Nf5 {[%clk 0:01:05.7]}
39. Nf4 {[%clk 0:00:11.6]} 39... Qg4 {[%clk 0:01:02.9]} 40. Kh2 {[%clk
0:00:08.5]} 40... h5 {[%clk 0:00:55.5]} 41. Qe2 {[%clk 0:00:04.1]} 41... Qxg3+
{[%clk 0:00:53.4]} 42. Kh1 {[%clk 0:00:03.2]} 42... Qxf4 {[%clk 0:00:50.8]} 0-1

[Event "Early-Titled-Tuesday-Blitz-May-28-2024"]
[Site "Chess.com"]
[Date "2024.05.28"]
[Round "11"]
[White "C_K_G"]
[Black "NikFil2013"]
[Result "0-1"]
[WhiteElo "2305"]
[BlackElo "2455"]
[TimeControl "180+1"]
[EndTime "10:08:57 PDT"]
[Termination "NikFil2013 won on time"]

1. e4 {[%clk 0:02:54.7]} 1... c5 {[%clk 0:02:58.9]} 2. Nf3 {[%clk 0:02:54.8]}
2... d6 {[%clk 0:02:58.6]} 3. d4 {[%clk 0:02:55.3]} 3... cxd4 {[%clk 0:02:59.5]}
4. Nxd4 {[%clk 0:02:55.8]} 4... Nf6 {[%clk 0:03:00]} 5. Nc3 {[%clk 0:02:56.1]}
5... a6 {[%clk 0:03:00.3]} 6. Be2 {[%clk 0:02:55.9]} 6... e5 {[%clk 0:02:58.7]}
7. Nb3 {[%clk 0:02:55.9]} 7... Be7 {[%clk 0:02:58.9]} 8. Be3 {[%clk 0:02:55.9]}
8... O-O {[%clk 0:02:58.2]} 9. O-O {[%clk 0:02:55.9]} 9... b5 {[%clk 0:02:58.5]}
10. f4 {[%clk 0:02:52.7]} 10... Bb7 {[%clk 0:02:55.7]} 11. Bf3 {[%clk
0:02:50.9]} 11... Nbd7 {[%clk 0:02:53.4]} 12. f5 {[%clk 0:02:50.3]} 12... Nb6
{[%clk 0:02:37.3]} 13. g4 {[%clk 0:02:43]} 13... d5 {[%clk 0:02:32.7]} 14. exd5
{[%clk 0:02:18.7]} 14... Nbxd5 {[%clk 0:02:31.8]} 15. Nxd5 {[%clk 0:02:14.9]}
15... Nxd5 {[%clk 0:02:31.2]} 16. Bf2 {[%clk 0:02:02]} 16... Qc7 {[%clk
0:02:11.8]} 17. Bxd5 {[%clk 0:01:56.5]} 17... Rad8 {[%clk 0:02:10.9]} 18. Bxf7+
{[%clk 0:01:06.5]} 18... Kxf7 {[%clk 0:02:02.4]} 19. Qe2 {[%clk 0:00:49.6]}
19... Qc6 {[%clk 0:01:59]} 20. Bg3 {[%clk 0:00:48.1]} 20... Kg8 {[%clk
0:01:11.8]} 21. c3 {[%clk 0:00:13.1]} 21... h5 {[%clk 0:00:40.9]} 22. gxh5
{[%clk 0:00:10.1]} 22... a5 {[%clk 0:00:09.2]} 23. Kf2 {[%clk 0:00:02.2]} 23...
a4 {[%clk 0:00:07.5]} 24. Na5 {[%clk 0:00:01.8]} 24... Qb6+ {[%clk 0:00:07.5]}
25. Qe3 {[%clk 0:00:01.4]} 25... Qxa5 {[%clk 0:00:03]} 0-1

[Event "Early-Titled-Tuesday-Blitz-May-28-2024"]
[Site "Chess.com"]
[Date "2024.05.28"]
[Round "11"]
[White "Chessmissile07"]
[Black "DishonorOnYourCow"]
[Result "1-0"]
[WhiteElo "2820"]
[BlackElo "2587"]
[TimeControl "180+1"]
[EndTime "10:08:58 PDT"]
[Termination "Chessmissile07 won by checkmate"]

1. a3 {[%clk 0:03:00.9]} 1... d5 {[%clk 0:02:58.5]} 2. Nf3 {[%clk 0:02:57.7]}
2... c5 {[%clk 0:02:58.1]} 3. c4 {[%clk 0:02:55.2]} 3... Nf6 {[%clk 0:02:54.5]}
4. cxd5 {[%clk 0:02:53]} 4... Nxd5 {[%clk 0:02:55.4]} 5. Nc3 {[%clk 0:02:52.1]}
5... Nc6 {[%clk 0:02:53.5]} 6. e3 {[%clk 0:02:41.6]} 6... e5 {[%clk 0:02:52]} 7.
Bb5 {[%clk 0:02:38.4]} 7... Nxc3 {[%clk 0:02:40.4]} 8. bxc3 {[%clk 0:02:26.2]}
8... Bd6 {[%clk 0:02:37.1]} 9. O-O {[%clk 0:02:19.5]} 9... e4 {[%clk 0:02:35.6]}
10. Qa4 {[%clk 0:01:45]} 10... exf3 {[%clk 0:01:35.6]} 11. Bxc6+ {[%clk
0:01:44.5]} 11... bxc6 {[%clk 0:01:22.6]} 12. Qxc6+ {[%clk 0:01:45.4]} 12... Kf8
{[%clk 0:00:51]} 13. Qxa8 {[%clk 0:01:45.2]} 13... fxg2 {[%clk 0:00:48.2]} 14.
Qxg2 {[%clk 0:01:43.5]} 14... Qc7 {[%clk 0:00:46.1]} 15. d4 {[%clk 0:01:24.2]}
15... h5 {[%clk 0:00:45.5]} 16. e4 {[%clk 0:01:20.2]} 16... h4 {[%clk
0:00:39.9]} 17. e5 {[%clk 0:01:15.9]} 17... Be7 {[%clk 0:00:31.5]} 18. Bf4
{[%clk 0:01:01.2]} 18... h3 {[%clk 0:00:27.9]} 19. Qf3 {[%clk 0:01:01]} 19...
Qd7 {[%clk 0:00:10.5]} 20. d5 {[%clk 0:00:23.9]} 20... Qf5 {[%clk 0:00:10.4]}
21. Qe3 {[%clk 0:00:23.4]} 21... Rh4 {[%clk 0:00:04.8]} 22. Bg3 {[%clk
0:00:19.4]} 22... Re4 {[%clk 0:00:04.9]} 23. Qd3 {[%clk 0:00:17.4]} 23... g5
{[%clk 0:00:02.3]} 24. d6 {[%clk 0:00:16.7]} 24... Bd8 {[%clk 0:00:01.9]} 25. d7
{[%clk 0:00:12.8]} 25... Ba6 {[%clk 0:00:01.5]} 26. Qxa6 {[%clk 0:00:07.3]}
26... Qf3 {[%clk 0:00:01.8]} 27. Qh6+ {[%clk 0:00:07.8]} 27... Ke7 {[%clk
0:00:01.2]} 28. Qxh3 {[%clk 0:00:08.4]} 28... g4 {[%clk 0:00:01]} 29. Qg2 {[%clk
0:00:08.3]} 29... Qf5 {[%clk 0:00:01]} 30. Bh4+ {[%clk 0:00:07.9]} 30... Kxd7
{[%clk 0:00:01]} 31. Rad1+ {[%clk 0:00:07.3]} 31... Ke8 {[%clk 0:00:01.9]} 32.
Rxd8# {[%clk 0:00:06.3]} 1-0

[Event "Early-Titled-Tuesday-Blitz-May-28-2024"]
[Site "Chess.com"]
[Date "2024.05.28"]
[Round "11"]
[White "manitodeplomo"]
[Black "chess_blitz00"]
[Result "0-1"]
[WhiteElo "2543"]
[BlackElo "2347"]
[TimeControl "180+1"]
[EndTime "10:08:58 PDT"]
[Termination "chess_blitz00 won on time"]

1. d4 {[%clk 0:03:00.9]} 1... g6 {[%clk 0:02:55.9]} 2. c4 {[%clk 0:02:59]} 2...
Bg7 {[%clk 0:02:56.4]} 3. Nc3 {[%clk 0:02:59.1]} 3... d6 {[%clk 0:02:57]} 4. e4
{[%clk 0:02:59]} 4... c5 {[%clk 0:02:57.7]} 5. d5 {[%clk 0:02:57.1]} 5... Bxc3+
{[%clk 0:02:57.6]} 6. bxc3 {[%clk 0:02:56.3]} 6... e5 {[%clk 0:02:58.5]} 7. dxe6
{[%clk 0:02:54.7]} 7... Bxe6 {[%clk 0:02:57.1]} 8. Bf4 {[%clk 0:02:53.9]} 8...
Qf6 {[%clk 0:02:53.3]} 9. Qd2 {[%clk 0:02:50.9]} 9... Nc6 {[%clk 0:02:53.1]} 10.
Nf3 {[%clk 0:02:22.1]} 10... h6 {[%clk 0:02:48.4]} 11. Rb1 {[%clk 0:02:13.5]}
11... O-O-O {[%clk 0:02:45.4]} 12. Bxd6 {[%clk 0:01:45.1]} 12... Bg4 {[%clk
0:02:23.1]} 13. e5 {[%clk 0:01:41.2]} 13... Qe6 {[%clk 0:02:22]} 14. Be2 {[%clk
0:01:35.6]} 14... Nxe5 {[%clk 0:01:58.3]} 15. Nxe5 {[%clk 0:00:43.4]} 15... Bxe2
{[%clk 0:01:29.7]} 16. Qxe2 {[%clk 0:00:41.8]} 16... Rxd6 {[%clk 0:01:29.5]} 17.
O-O {[%clk 0:00:40.5]} 17... f6 {[%clk 0:01:16.8]} 18. Qf3 {[%clk 0:00:37.2]}
18... fxe5 {[%clk 0:01:17.1]} 19. Qxb7+ {[%clk 0:00:33.9]} 19... Kd8 {[%clk
0:01:17.6]} 20. Qxa7 {[%clk 0:00:25.9]} 20... Ne7 {[%clk 0:01:11.6]} 21. Rb8+
{[%clk 0:00:21.1]} 21... Nc8 {[%clk 0:01:12]} 22. Qxc5 {[%clk 0:00:16.4]} 22...
Ke7 {[%clk 0:00:58.8]} 23. Re1 {[%clk 0:00:13.9]} 23... Kf6 {[%clk 0:00:55.2]}
24. f4 {[%clk 0:00:12.7]} 24... e4 {[%clk 0:00:51.2]} 25. Rb7 {[%clk 0:00:09]}
25... Ne7 {[%clk 0:00:45.4]} 26. Qf2 {[%clk 0:00:06]} 26... Nf5 {[%clk
0:00:38.3]} 27. g4 {[%clk 0:00:05.1]} 27... e3 {[%clk 0:00:27]} 28. Qg2 {[%clk
0:00:02.8]} 28... Nh4 {[%clk 0:00:18.4]} 29. g5+ {[%clk 0:00:03.1]} 29... Kf5
{[%clk 0:00:12.4]} 30. Qh3+ {[%clk 0:00:03.1]} 30... Ke4 {[%clk 0:00:09.7]} 31.
Qxe3+ {[%clk 0:00:01.9]} 31... Kf5 {[%clk 0:00:09.6]} 32. Qh3+ {[%clk
0:00:02.4]} 32... Kxf4 {[%clk 0:00:10]} 0-1